Posting Date,Expenditure Area,Supplier Name,Amount,Expense Type,Reason for Expense
23-Apr-21,Corporate Management Team,Currys Online, 374.97 ,Specific Campaigns / Projects expenditure,Electrical items 
15-Apr-21,Culture & Environment Services,Amazon.Co.Uk, 41.67 ,Equipment / Furniture / Materials,2 x Heavy Duty Padlocks for Elections
20-Apr-21,Culture & Environment Services,Amazon.Co.Uk, 216.77 ,Computer Equipment - Purchase,REPLACEMENT TABLET
28-Apr-21,Culture & Environment Services,Amazon.Co.Uk, 23.95 ,Equipment / Furniture / Materials,rubberbands for crem
16-Apr-21,Culture & Environment Services,Amznmktplace, 115.82 ,Equipment / Furniture / Materials,"2 x Batteries, 1 x Battery Charger for Elections"
01-Apr-21,Culture & Environment Services,Amznmktplace, 10.72 ,Equipment / Furniture / Materials,cables for filming equip
22-Apr-21,Culture & Environment Services,Amznmktplace, 3.85 ,Equipment / Furniture / Materials,carbon fiber brushes for Masons drill
21-Apr-21,Culture & Environment Services,Amznmktplace, 21.83 ,Equipment / Furniture / Materials,coffee for bearers room
09-Apr-21,Culture & Environment Services,Amznmktplace, 13.32 ,Materials and Supplies - Miscellaneous,DOOR BELL FOR RECEPTION AREA - CHRISTCHURCH
28-Apr-21,Culture & Environment Services,Amznmktplace, 124.58 ,Equipment / Furniture / Materials,Extension Leads for Heaters at Elections
28-Apr-21,Culture & Environment Services,Amznmktplace Amazon.Co.Uk, 17.97 ,Telecommunication Costs - Mobiles,PHONE CASES
09-Apr-21,Culture & Environment Services,Amznmktplace Amazon.Co.Uk, 11.98 ,Computer Consumables and other Minor IT costs,REPLACEMENT MOUSE
12-Apr-21,Culture & Environment Services,Anchor Pumps Co Ltd, 373.40 ,Equipment / Furniture / Materials,Pump for bowser
12-Apr-21,Culture & Environment Services,Argos Ltd, 17.50 ,Equipment / Furniture / Materials,Bins for recycling.
02-Apr-21,Culture & Environment Services,Argos Ltd, 20.83 ,Equipment / Furniture / Materials,Chain for rear gate.
12-Apr-21,Culture & Environment Services,B & Q 1315, 120.00 ,Materials and Supplies - Miscellaneous,Material for SPRING CLEAN - PARKS
26-Apr-21,Culture & Environment Services,B & Q 1315, 252.99 ,Miscellaneous Stock  - Purchases,Material for toilet repairs - ALEXANDRA PARK
20-Apr-21,Culture & Environment Services,B & Q 1315, 33.33 ,Equipment / Furniture / Materials,Material to repair Play Equipment
13-Apr-21,Culture & Environment Services,B & Q 1315, 11.67 ,Equipment / Furniture / Materials,Spray paint for floor signs
09-Apr-21,Culture & Environment Services,B & Q 1315, 55.83 ,Materials and Supplies - Miscellaneous,TOWN CENTRE PLANTERS
16-Apr-21,Culture & Environment Services,B & Q 1315, 78.10 ,Miscellaneous Stock  - Purchases,TREATED TIMBER - ALEXANDRA PARK
12-Apr-21,Culture & Environment Services,B&q Direct, 20.86 ,Equipment / Furniture / Materials,"Foam, adhesive and rope."
19-Apr-21,Culture & Environment Services,Bag Agg Ltd, 28.80 ,Materials and Supplies - Miscellaneous,STONE FOR COMPOST TOILET
28-Apr-21,Culture & Environment Services,Boilerjuice, 703.32 ,Materials and Supplies - Miscellaneous,Red Diesel for Gainsborough Depot for grass cutters.
23-Apr-21,Culture & Environment Services,Booker Limited Ipswich, 6.24 ,Materials and Supplies - Miscellaneous,Sundries for Waste Services
02-Apr-21,Culture & Environment Services,Bright Acres Tool Hire, 102.25 ,Materials and Supplies - Miscellaneous,Equipment Hire
12-Apr-21,Culture & Environment Services,Bright Acres Tool Hire, 60.00 ,Materials and Supplies - Miscellaneous,TOOL HIRE - TOOKS SITE
13-Apr-21,Culture & Environment Services,Bunzl Cleaning & Hygie, 201.82 ,Cleaning Supplies,Cleaning Supplies As No Order Number Set Up Yet
13-Apr-21,Culture & Environment Services,Collier & Catchpole, 151.69 ,Materials and Supplies - Miscellaneous,WATER PIPE FR TREE PLANTING - CHANTRY HUB
14-Apr-21,Culture & Environment Services,Cpw Locksmiths And Securi, 20.00 ,Materials and Supplies - Miscellaneous,key cutting for bin stores
13-Apr-21,Culture & Environment Services,Cpw Locksmiths And Securi, 20.83 ,Equipment / Furniture / Materials,keys cut for FS
13-Apr-21,Culture & Environment Services,Cpw Locksmiths And Securi, 20.00 ,Equipment / Furniture / Materials,Keys for side door as an alternative entry to the pool
15-Apr-21,Culture & Environment Services,Cpw Locksmiths And Securi, 5.83 ,Equipment / Furniture / Materials,Office Key Cutting Service
16-Apr-21,Culture & Environment Services,Cpw Locksmiths And Securi, 17.92 ,Equipment / Furniture / Materials,padlock and keys cut
09-Apr-21,Culture & Environment Services,Defib Pad, 64.50 ,Equipment / Furniture / Materials,de fib pads
12-Apr-21,Culture & Environment Services,Dvla Vehicle Tax, 277.50 ,Parks Vehicle Costs,VEHICLE TAX 
12-Apr-21,Culture & Environment Services,Dvla Vehicle Tax, 167.50 ,Direct Transport Costs,VEHICLE TAX 
12-Apr-21,Culture & Environment Services,Dvla Vehicle Tax, 167.50 ,Direct Transport Costs,VEHICLE TAX 
12-Apr-21,Culture & Environment Services,Dvla Vehicle Tax, 302.50 ,Direct Transport Costs,VEHICLE TAX 
12-Apr-21,Culture & Environment Services,Dvla Vehicle Tax, 277.50 ,Direct Transport Costs,VEHICLE TAX 
12-Apr-21,Culture & Environment Services,Dvla Vehicle Tax, 172.50 ,Direct Transport Costs,VEHICLE TAX 
12-Apr-21,Culture & Environment Services,Dvla Vehicle Tax, 172.50 ,Direct Transport Costs,VEHICLE TAX 
30-Apr-21,Culture & Environment Services,Dvla Vehicle Tax, 277.50 ,Direct Transport Costs,VEHICLE TAX 
14-Apr-21,Culture & Environment Services,East Anglian Beari, 35.66 ,Equipment / Furniture / Materials,wheelchair spares
15-Apr-21,Culture & Environment Services,Ebay O*15-06904-19858, 189.98 ,Equipment / Furniture / Materials,2 x Heavy Duty Chains for Elections
23-Apr-21,Culture & Environment Services,Elite Academy Ltd, 195.83 ,Training Expenses,CCTV Training Course
16-Apr-21,Culture & Environment Services,Firstaid4less.Co.Uk, 356.40 ,Equipment / Furniture / Materials,First Aid Boxes for 2021 elections 
07-Apr-21,Culture & Environment Services,Firstaid4less.Co.Uk, 60.85 ,Cleaning Supplies,First Aid Supplies for Crown Pools
21-Apr-21,Culture & Environment Services,Gripfixings Ipswich, 14.40 ,Equipment / Furniture / Materials,Material to repair Play Equipment
13-Apr-21,Culture & Environment Services,Home Bargains, 10.23 ,Cleaning Supplies,Cleaning Products - VARIOUS HUBS
26-Apr-21,Culture & Environment Services,Horticultural Sppls Ltd, 117.70 ,Miscellaneous Stock  - Purchases,Grass seed for Alexandra Park
22-Apr-21,Culture & Environment Services,Horticultural Sppls Ltd, 28.60 ,Materials and Supplies - Miscellaneous,Various tools - CHANTRY HUB
13-Apr-21,Culture & Environment Services,Iceland, 2.33 ,Cleaning Supplies,sanitizer wipes
16-Apr-21,Culture & Environment Services,Indespension, 29.01 ,Parks Vehicle Costs,Parts for trailer - CHANTRY HUB
21-Apr-21,Culture & Environment Services,Indespension, 26.72 ,Parks Vehicle Costs,Parts for Trailer - WHITTON HUB
16-Apr-21,Culture & Environment Services,Indespension, 32.07 ,Equipment / Furniture / Materials,Trailer lighting cable with plugs either end
08-Apr-21,Culture & Environment Services,J P Lennard Ltd, 92.15 ,Equipment / Furniture / Materials,rubber ducks for swimming lessons
15-Apr-21,Culture & Environment Services,Jewson Ltd, 23.56 ,Equipment / Furniture / Materials,Tools for bin repairs
27-Apr-21,Culture & Environment Services,Kent Blaxill And C, 39.90 ,Equipment / Furniture / Materials,Sadolin woodstain for benches
30-Apr-21,Culture & Environment Services,Kings, 4.17 ,Equipment / Furniture / Materials,Key for notice boards
22-Apr-21,Culture & Environment Services,Lockshopwarehouse, 27.50 ,Equipment / Furniture / Materials,Padlocks for 5-a-side goals
15-Apr-21,Culture & Environment Services,Lumberjacks, 14.28 ,Materials and Supplies - Miscellaneous,Arbs
01-Apr-21,Culture & Environment Services,Lumberjacks, 212.62 ,Miscellaneous Stock  - Purchases,Fencing posts & drill bits 
15-Apr-21,Culture & Environment Services,Lumberjacks, 10.48 ,Miscellaneous Stock  - Purchases,Line Marker - LANDSCAPE TEAM
30-Apr-21,Culture & Environment Services,Machine Mart Ltd, 102.97 ,Equipment / Furniture / Materials,General tools for the service
27-Apr-21,Culture & Environment Services,Machine Mart Ltd, 15.99 ,Materials and Supplies - Miscellaneous,Various Material - CHANTRY HUB
01-Apr-21,Culture & Environment Services,Machine Mart Web, 107.85 ,Equipment / Furniture / Materials,Measuring Jugs and Funnels for various locations
12-Apr-21,Culture & Environment Services,Marks&spencer Plc Saca, 25.00 ,Equipment / Furniture / Materials,flowers for town hall
16-Apr-21,Culture & Environment Services,Marks&spencer Plc Saca, 5.00 ,Equipment / Furniture / Materials,Flowers for Town Hall Steps
22-Apr-21,Culture & Environment Services,Nelson Potter Ltd, 31.56 ,Materials and Supplies - Miscellaneous,Replacement fence panel for damage at Bridgewood.
15-Apr-21,Culture & Environment Services,Paypal, 189.00 ,Materials and Supplies - Miscellaneous,2 x 100 SUPA Slidesheets
02-Apr-21,Culture & Environment Services,Premier Inn44010655, 177.00 ,Training Expenses,ACCOMDATION
02-Apr-21,Culture & Environment Services,Premier Inn44010655, 178.00 ,Training Expenses,ACCOMDATION
02-Apr-21,Culture & Environment Services,Premier Inn44010655,-29.00 ,Training Expenses,ACCOMDATION CREDIT 
02-Apr-21,Culture & Environment Services,Premier Inn44010655,-29.00 ,Training Expenses,ACCOMDATION CREDIT 
05-Apr-21,Culture & Environment Services,Sainsburys S/mkt, 7.23 ,Materials and Supplies - Miscellaneous,Sundries for Waste Services
19-Apr-21,Culture & Environment Services,Sainsburys S/mkt, 11.25 ,Materials and Supplies - Miscellaneous,Sundries for Waste Services
09-Apr-21,Culture & Environment Services,Sainsburys S/mkts, 1.82 ,Materials and Supplies - Miscellaneous,Sundries for Waste Services
15-Apr-21,Culture & Environment Services,Sainsburys S/mkts, 1.82 ,Materials and Supplies - Miscellaneous,Sundries for Waste Services
21-Apr-21,Culture & Environment Services,Sainsburys S/mkts, 1.82 ,Materials and Supplies - Miscellaneous,Sundries for Waste Services
08-Apr-21,Culture & Environment Services,Screwfix Dir Ltd, 46.96 ,Miscellaneous Stock  - Purchases,Resin & Sealant - ALEXANDRA PARK
23-Apr-21,Culture & Environment Services,Screwfix Direct, 66.63 ,Materials and Supplies - Miscellaneous,10 x 1m Green Roof Felt
15-Apr-21,Culture & Environment Services,Screwfix Direct, 366.63 ,Equipment / Furniture / Materials,2 x Battery Powered Lights for Elections
01-Apr-21,Culture & Environment Services,Screwfix Direct, 12.24 ,Equipment / Furniture / Materials,Cable cover for Education Room
19-Apr-21,Culture & Environment Services,Screwfix Direct, 237.43 ,Equipment / Furniture / Materials,Elections 8 x sack barrows
20-Apr-21,Culture & Environment Services,Screwfix Direct, 19.99 ,Equipment / Furniture / Materials,Extension cable
16-Apr-21,Culture & Environment Services,Screwfix Direct, 291.58 ,Equipment / Furniture / Materials,Oil-filled Radiators for Elections
21-Apr-21,Culture & Environment Services,Screwfix Direct, 42.48 ,Materials and Supplies - Miscellaneous,Padlocks x 2
30-Apr-21,Culture & Environment Services,Screwfix Direct, 21.29 ,Equipment / Furniture / Materials,repair spares
02-Apr-21,Culture & Environment Services,Screwfix Direct, 4.47 ,Materials and Supplies - Miscellaneous,Service Cabinet Keys x 3
05-Apr-21,Culture & Environment Services,Screwfix Direct, 19.13 ,Equipment / Furniture / Materials,waste fittings and pipe
21-Apr-21,Culture & Environment Services,Sfl Mobile Radio Limited, 46.94 ,Equipment / Furniture / Materials,Battery for two-way radios
12-Apr-21,Culture & Environment Services,Tesco Store 2748, 8.33 ,Miscellaneous Expenses,Vases for Town Hall (BoC)
30-Apr-21,Culture & Environment Services,The Range, 18.23 ,Equipment / Furniture / Materials,Cellotape and Blue Tac for Elections
09-Apr-21,Culture & Environment Services,The Windscreen Co, 48.00 ,Direct Transport Costs,CHIP REPAIR
27-Apr-21,Culture & Environment Services,The Windscreen Co, 48.00 ,Direct Transport Costs,CHIP REPAIR
27-Apr-21,Culture & Environment Services,The Windscreen Co, 48.00 ,Direct Transport Costs,CHIP REPAIR
12-Apr-21,Culture & Environment Services,The Windscreen Co, 198.00 ,Direct Transport Costs,REPLACEMENT WS 
12-Apr-21,Culture & Environment Services,The Windscreen Co, 145.00 ,Parks Vehicle Costs,Windscreen repair 
30-Apr-21,Culture & Environment Services,Toolstation Ltd, 28.22 ,Materials and Supplies - Miscellaneous,Starter Hose Set and Brass Tap Connector
30-Apr-21,Culture & Environment Services,Topps Tiles Ipswic, 22.81 ,Equipment / Furniture / Materials,grout and tools for poolside tiles
02-Apr-21,Culture & Environment Services,Track Field Sports,-749.50 ,Specific Campaigns / Projects expenditure,Refund for athletics equipment
09-Apr-21,Culture & Environment Services,Trp7 Ltd, 85.00 ,Equipment / Furniture / Materials,ramps for market
02-Apr-21,Culture & Environment Services,Victoria Nurseries, 10.00 ,Materials and Supplies - Miscellaneous,Soil - TOOKS SITE
28-Apr-21,Culture & Environment Services,Viking Uk, 179.85 ,Equipment / Furniture / Materials,Bins for NHS.
30-Apr-21,Culture & Environment Services,Viking Uk, 8.29 ,Stationery,Post it notes
12-Apr-21,Culture & Environment Services,Wh Smith, 8.32 ,Miscellaneous Expenses,Pens for the Town Hall (BoC)
15-Apr-21,Culture & Environment Services,Wickes Ipswich, 10.08 ,Equipment / Furniture / Materials,Tools for bin repairs
15-Apr-21,Culture & Environment Services,Wickes Ipswich, 40.74 ,Equipment / Furniture / Materials,Tools for bin repairs
28-Apr-21,Culture & Environment Services,Www Espares Co Uk, 25.22 ,Equipment / Furniture / Materials,henry spares
29-Apr-21,Culture & Environment Services,Www.Banneruk.Com, 7.30 ,Stationery,Clip boards
02-Apr-21,Culture & Environment Services,Www.Banneruk.Com, 11.92 ,Stationery,Stationery for Waste Services
28-Apr-21,Culture & Environment Services,Www.Banneruk.Com, 89.75 ,Materials and Supplies - Miscellaneous,"Tea and Coffee, A3 paper and laminating pouches, pens."
28-Apr-21,Culture & Environment Services,Www.Banneruk.Com, 45.83 ,Stationery,"Tea and Coffee, A3 paper and laminating pouches, pens."
14-Apr-21,Culture & Environment Services,Www.Bearingboys.Co.Uk, 39.59 ,Equipment / Furniture / Materials,wheelchair spares
21-Apr-21,Culture & Environment Services,Www.Bunzlcleaningsuppl, 51.27 ,Cleaning Supplies,Blue paper roll for Ransomes
01-Apr-21,Culture & Environment Services,Www.Graniteworkwear.Com, 44.40 ,Clothing / Uniform & Laundry,PPE trousers
28-Apr-21,Culture & Environment Services,Www.Ofcom.Org.Uk, 75.00 ,Licences & Other Fees,License for 2-way-radios
23-Apr-21,Development,A C Leigh, 38.25 ,Premises Costs - Miscellaneous,key cards
23-Apr-21,Development,Anglianwater.Co.Uk, 116.00 ,Capital Expenditure,AW s106 fees
14-Apr-21,Development,Babergh District C, 100.00 ,Non Contracted_Professional Services,Partnership Inspections
26-Apr-21,Development,Defib Pad, 124.50 ,Materials and Supplies - Miscellaneous,replacement battery
12-Apr-21,Development,Geodesys, 90.80 ,Capital Expenditure,REDACTED
09-Apr-21,Development,Ncx*utilitysearch, 109.02 ,Capital Expenditure,REDACTED
22-Apr-21,Development,Royal Mail Charges, 1.67 ,Postage Costs,fee to pay
27-Apr-21,Development,Royal Mail Charges, 1.50 ,Postage Costs,fee to pay
29-Apr-21,Development,Royal Mail Charges, 1.25 ,Postage Costs,fee to pay
30-Apr-21,Development,The Range, 14.99 ,Equipment / Furniture / Materials,plastic trays for elections
02-Apr-21,Development,"Www,eastsuffolk.Gov.Uk", 288.00 ,Non Contracted_Professional Services,Partnership Inspections
22-Apr-21,Development,"Www,eastsuffolk.Gov.Uk", 96.00 ,Non Contracted_Professional Services,Partnership Inspections
28-Apr-21,Development,"Www,eastsuffolk.Gov.Uk", 192.00 ,Non Contracted_Professional Services,Partnership Inspections
14-Apr-21,Development,Www.Midsuffolk.Gov.Uk, 100.00 ,Non Contracted_Professional Services,Partnership Inspections
07-Apr-21,Finance & Revenues,Amznmktplace, 71.39 ,Computer Equipment - Purchase,Printer All In One
26-Apr-21,Finance & Revenues,Cbt Nuggets Llc, 43.92 ,Training Expenses,IT Training
13-Apr-21,Finance & Revenues,Comms Express Ltd, 104.76 ,Capital Expenditure,Network Cables
26-Apr-21,Finance & Revenues,Dri*, 44.13 ,Computer Software - Purchase,PDF Software
28-Apr-21,Finance & Revenues,Online Ergonomics Ltd, 145.00 ,Equipment / Furniture / Materials,Single leg support 
01-Apr-21,Finance & Revenues,Paypal, 25.98 ,Computer Software - Purchase,Domain renewals
02-Apr-21,Finance & Revenues,Paypal, 51.97 ,Computer Software - Purchase,Domain renewals
09-Apr-21,Finance & Revenues,Service Fees - Fraedom Pty Ltd, 383.15 ,Computer Software - Maintenance,Fraedom Card Fees - 1/2/21 to 31/3/21
23-Apr-21,Finance & Revenues,Siteground Hosting, 60.00 ,Equipment / Furniture / Materials,Web hosting
07-Apr-21,Finance & Revenues,Siteground Hosting, 755.64 ,Advertising/Publicity,Web hosting renewal
22-Apr-21,Finance & Revenues,Southend County, 155.50 ,Legal Services & Fees,REDACTED
26-Apr-21,Finance & Revenues,Www.Irrv.Org.Uk, 185.00 ,Training/Courses Running Costs,IRRV Introduction to Business Rates 
05-Apr-21,Housing & Community Services,Amazon Prime, 7.99 ,Equipment / Furniture / Materials,Amazon Prime
15-Apr-21,Housing & Community Services,Amazon.Co.Uk, 7.82 ,Equipment / Furniture / Materials,Maintenance (lock lubricant for pat and display machine)
29-Apr-21,Housing & Community Services,Amazon.Co.Uk, 96.66 ,Equipment / Furniture / Materials,Replacement 110v Tile Cutter 
30-Apr-21,Housing & Community Services,Amznmktplace, 16.58 ,Equipment / Furniture / Materials,10ltr sprayer 
05-Apr-21,Housing & Community Services,Amznmktplace, 53.30 ,Miscellaneous Expenses,3 boxes A4 filing cabinets inserts tags etc for new lockable
30-Apr-21,Housing & Community Services,Amznmktplace, 20.98 ,Specific Campaigns / Projects expenditure,Bike lock and bike tool kit for navigator client
28-Apr-21,Housing & Community Services,Amznmktplace, 49.99 ,Miscellaneous Expenses,replacement shower chair Broke Hall Hse shower room
23-Apr-21,Housing & Community Services,Anglia Locksmiths/, 102.00 ,HRA Special Repairs & Maintenance,repair/replace/renew lock/keys to sheltered properties
23-Apr-21,Housing & Community Services,Anglia Truck Tyre Manag, 69.60 ,Direct Transport Costs,Replacement tyre 
22-Apr-21,Housing & Community Services,Argos Ltd, 469.95 ,Specific Campaigns / Projects expenditure,2 x Tv's for 2 navigator clients
14-Apr-21,Housing & Community Services,Argos Ltd, 169.99 ,Specific Campaigns / Projects expenditure,Smart TV for Navigator client
07-Apr-21,Housing & Community Services,Autodesk Ady, 426.00 ,Publications - Purchase,AutoCAD subscription
19-Apr-21,Housing & Community Services,Chartered Institute Of En, 45.00 ,Training Expenses,1 x booking Food Allergen course 
23-Apr-21,Housing & Community Services,Chartered Institute Of En, 99.00 ,Training Expenses,Housing and health conference 
08-Apr-21,Housing & Community Services,Cpw Locksmiths And Securi, 280.00 ,HRA Special Repairs & Maintenance,repair/replace/renew lock/keys to sheltered properties
20-Apr-21,Housing & Community Services,Cpw Locksmiths And Securi, 80.00 ,HRA Special Repairs & Maintenance,repair/replace/renew lock/keys to sheltered properties
01-Apr-21,Housing & Community Services,Cpw Locksmiths And Securi, 116.00 ,HRA Special Repairs & Maintenance,scooter store numbers & installation
12-Apr-21,Housing & Community Services,Edmundson Electrical, 30.90 ,GF_Contract Repair & Maintenance,3x new fuses for main electrical cupboard 
23-Apr-21,Housing & Community Services,Gen Register Office, 14.00 ,Specific Campaigns / Projects expenditure,Birth certificate for Navigator client
23-Apr-21,Housing & Community Services,Greater Anglia Trains, 83.50 ,Use Of Public Transport,Train Travel -  SIA course
27-Apr-21,Housing & Community Services,Instituteli, 465.00 ,Subscriptions - Service Related,Membership renewal 
23-Apr-21,Housing & Community Services,Ipswich Borough Counci, 112.50 ,Specific Campaigns / Projects expenditure,Gym and Swim passess for 2 navigator clients
23-Apr-21,Housing & Community Services,Premier Inn 44536100, 224.29 ,Services for Clients,hotel booking for homeless person
29-Apr-21,Housing & Community Services,Premier Inn 44536100, 300.48 ,Services for Clients,hotel costs for homeless person
22-Apr-21,Housing & Community Services,Ridgid Tool Shop, 63.63 ,Equipment / Furniture / Materials,replacement sani snakes for drain doctor equipment
19-Apr-21,Housing & Community Services,Screwfix Direct, 31.49 ,Equipment / Furniture / Materials,Bosch 12v Router Bits for Machine GR055 Hireshop
28-Apr-21,Housing & Community Services,Screwfix Direct, 24.99 ,Clothing / Uniform & Laundry,Safety Boots size 5
13-Apr-21,Housing & Community Services,Security Industry, 190.00 ,Licences & Other Fees,SIA Licence
23-Apr-21,Housing & Community Services,Tesco Pfs 3887, 20.99 ,Equipment / Furniture / Materials,Fuel for Hireshop small plant machinery
15-Apr-21,Housing & Community Services,Timpson Ltd, 17.50 ,Specific Campaigns / Projects expenditure,Keys cut for RSI staff to access lockup
21-Apr-21,Housing & Community Services,Travelodge Gb0000, 166.20 ,Services for Clients,B & B BC
28-Apr-21,Housing & Community Services,Travelodge Gb0000,-189.94 ,Services for Clients,Refund accom never used
27-Apr-21,Housing & Community Services,Www.Banneruk.Com, 108.25 ,Stationery,Stationery
19-Apr-21,Housing & Community Services,Www.Ffx.Co.Uk, 248.33 ,Equipment / Furniture / Materials,10x 10.8v Bosch Batteries for hire shop tools
19-Apr-21,Housing & Community Services,Www.Iomnet.Org.Uk, 155.00 ,Employee Expenses,renewing OF membership of the CILT 
15-Apr-21,Housing & Community Services,Www.Labelsandtags.Co.U, 38.50 ,Materials and Supplies - Miscellaneous,Materials Caretakers
21-Apr-21,Housing & Community Services,Www.Safetyfirstaid.Co., 147.00 ,Miscellaneous Expenses,H & S first aid box supplies for all schemes
09-Apr-21,Housing & Community Services,Www.Suzylamplugh.Org, 29.00 ,Training Expenses,Domestic Abuse Stalking Training Conference
02-Apr-21,People & Governance,Adobe Stock, 19.99 ,Computer Consumables and other Minor IT costs,Stock Image Credits
09-Apr-21,People & Governance,Amazon.Co.Uk, 54.78 ,Computer Consumables and other Minor IT costs,Printer Toners
21-Apr-21,People & Governance,Amazon.Co.Uk, 50.00 ,Computer Consumables and other Minor IT costs,Printer Toners
20-Apr-21,People & Governance,Amazon.Co.Uk, 233.00 ,Specific Campaigns / Projects expenditure,REDACTED
21-Apr-21,People & Governance,Amznmktplace, 72.72 ,Miscellaneous Stock  - Purchases,A1 Correx Boards for print room use
29-Apr-21,People & Governance,Amznmktplace, 12.23 ,Computer Consumables and other Minor IT costs,Anti-static brush for mail inserting machine
08-Apr-21,People & Governance,Amznmktplace, 31.65 ,Miscellaneous Stock  - Purchases,Grommet Tool for the print room use
16-Apr-21,People & Governance,Amznmktplace, 63.76 ,Specific Campaigns / Projects expenditure,Inks and Toners for Housing and Electoral Teams
16-Apr-21,People & Governance,Amznmktplace, 90.81 ,Computer Consumables and other Minor IT costs,Inks and Toners for Housing and Electoral Teams
09-Apr-21,People & Governance,Amznmktplace, 38.80 ,Computer Consumables and other Minor IT costs,Printer Toners
12-Apr-21,People & Governance,Bravenet Web Services Inc, 45.09 ,Advertising/Publicity,"Guestbook services for Duke of Edinburgh, request of COO"
20-Apr-21,People & Governance,Cartridge Save, 43.29 ,Computer Consumables and other Minor IT costs,Councillor Ink Cartridges
12-Apr-21,People & Governance,Marks&spencer Plc Saca, 8.33 ,Miscellaneous Functions & Events,Flowers for death of a Royal (Philip)
15-Apr-21,People & Governance,Marks&spencer Plc Saca, 10.00 ,Miscellaneous Functions & Events,REDACTED
20-Apr-21,People & Governance,Next Directory, 150.00 ,Specific Campaigns / Projects expenditure,REDACTED
27-Apr-21,People & Governance,Next Directory,-150.00 ,Specific Campaigns / Projects expenditure,REDACTED
15-Apr-21,People & Governance,Quadient UK Ltd, 103.60 ,Miscellaneous Stock  - Purchases,Sealing Fluid for the Folder Inserter Machines
19-Apr-21,People & Governance,"Sprout Social, Inc", 713.11 ,Advertising/Publicity,Social media management platform
14-Apr-21,People & Governance,Www.Aalabels.Com, 4.80 ,Miscellaneous Stock  - Purchases,Delivery Charge for sticker sheets - Print Room Use
23-Apr-21,People & Governance,Www.Aalabels.Com, 150.68 ,Miscellaneous Stock  - Purchases,Labels for external print job - SCC
26-Apr-21,People & Governance,Www.Aalabels.Com, 85.31 ,Miscellaneous Stock  - Purchases,Specialist Stickers for Covid Floor Stickers - print room
14-Apr-21,People & Governance,Www.Aalabels.Com, 150.68 ,Miscellaneous Stock  - Purchases,Stickers for a Suffolk County Print Request - Print Room Use
08-Apr-21,People & Governance,Www.Banneruk.Com,-125.58 ,Computer Consumables and other Minor IT costs,Refund for replaced faulty 723 toner
08-Apr-21,People & Governance,Www.Eelga.Gov.Uk, 536.40 ,Training/Courses Running Costs,Apprentice of the year 22nd April 2021
23-Apr-21,People & Governance,Www.Paper.Co.Uk, 79.26 ,Miscellaneous Stock  - Purchases,Paper for the Print Room use
08-Apr-21,People & Governance,Www.Paper.Co.Uk, 413.37 ,Miscellaneous Stock  - Purchases,Various specialist paper and labels for print room
14-Apr-21,People & Governance,Www.Paper.Co.Uk, 310.92 ,Miscellaneous Stock  - Purchases,Various Specialist paper for the print room use
22-Apr-21,People & Governance,Www.Paper.Co.Uk, 98.42 ,Miscellaneous Stock  - Purchases,Wristband Media for Electoral
28-Apr-21,People & Governance,Www.Voucherexpress.Co., 150.00 ,Specific Campaigns / Projects expenditure,REDACTED
16-Apr-21,People & Governance,Zoom.Us 888-799-9666, 23.98 ,Computer Consumables and other Minor IT costs,Zoom Subscription
